[Event "Oceania Zonal Open 2023"]
[Site "Melbourne"]
[Date "2023.01.24"]
[Round "3.11"]
[White "Xie, Felix"]
[Black "Park-Tamati, Philli"]
[Result "1-0"]
[ECO "E11"]
[WhiteElo "2103"]
[BlackElo "1868"]
[Annotator "TA"]
[PlyCount "81"]
[EventDate "2023.01.09"]
[EventType "swiss"]
[EventCountry "AUS"]
[SourceTitle "playchess.com"]
[Source "ChessBase"]
[SourceQuality "1"]
[TimeControl "5400+30"]

{[%evp 19,81,50,61,44,50,53,77,31,33,35,34,35,37,30,29,26,73,71,91,77,77,60,102,81,293,287,369,358,322,288,289,274,281,260,383,379,353,265,238,201,352,356,377,364,382,235,547,555,532,484,498,374,400,441,910,906,877,614,598,586,5277,5185,29989,29990]} 1. d4 {[%emt 0:00:04]} Nf6 {[%emt 0:00:06]} 2. c4 {[%emt 0:00:05]} e6 {[%emt 0:00:03]} 3. g3 {[%emt 0:00:07]} Bb4+ {[%emt 0:00:08]} 4. Bd2 {[%emt 0:00:05]} a5 {[%emt 0:00:16]} 5. Nf3 {[%emt 0:00:08]} d6 {[%emt 0:00:29]} 6. Bg2 {[%emt 0:00:14]} O-O {[%emt 0:02:16]} 7. O-O {[%emt 0:00:22]} Bxd2 {[%emt 0:16:33]} 8. Qxd2 {[%emt 0:00:38]} Nbd7 {[%emt 0:01:03]} 9. Nc3 {[%emt 0:01:01]} e5 {[%emt 0:00:21]} 10. e4 {[%emt 0:03:50]} Re8 {[%emt 0:03:13]} 11. b3 {[%emt 0:04:24] E11: Bogo-Indian.} Qe7 {[%emt 0:00:43]} 12. Rfe1 {[%emt 0:02:18]} c6 {[%emt 0:01:27] [#]} 13. a3 $146 {[%emt 0:05:10] White is more active.} ({Better is} 13. Rac1 $16) ({Predecessor:} 13. Rad1 Nf8 14. h3 Ng6 15. Qc1 Bd7 16. Na4 b5 17. Nb6 Rab8 18. c5 dxc5 19. dxc5 Be6 20. Qc3 b4 21. Qe3 {½-½ Kohlweyer,B (2450)-Gaertner,G (2310) Liechtenstein op 12th 1994 (3)}) 13... Nb6 $14 {[%emt 0:03:20]} 14. Qd3 {[%emt 0:07:06]} Bg4 {[%emt 0:02:18][%cal Bc8g4,Bg4h5,Bh5g6][%mdl 32]} 15. Nd2 {[%emt 0:09:27][%cal Bf3d2,Bd2f1,Bf1g3][%mdl 32]} Nbd7 {[%emt 0:09:01]} 16. h3 {[%emt 0:04:41]} Bh5 {[%emt 0:01:22]} 17. f4 {[%emt 0:01:33]} exf4 {[%emt 0:05:19]} (17... h6 $11) 18. gxf4 $16 {[%emt 0:00:21]} Rad8 {[%emt 0:02:26]} 19. Nf1 {[%emt 0:02:32]} Bg6 {[%emt 0:06:04][%cal Od6d5]} 20. Qf3 {[%emt 0:02:12]} Bh5 {[%emt 0:03:03]} 21. Qf2 {[%emt 0:02:41] Hoping for e5.} Nf8 $2 {[%emt 0:08:08] [#] Loses the game.} (21... Bg6 $16) 22. Ng3 $1 $18 {[%emt 0:01:46]} g6 {[%emt 0:01:35]} 23. e5 {[%emt 0:01:40]} N6d7 {[%emt 0:00:36]} 24. Nxh5 {[%emt 0:00:42]} gxh5 {[%emt 0:00:02]} 25. Ne4 {[%emt 0:00:44]} dxe5 {[%emt 0:00:29]} 26. dxe5 {[%emt 0:00:51]} Rb8 {[%emt 0:04:32]} (26... f6 {was necessary.} 27. Nd6 fxe5) 27. Nd6 {[%emt 0:01:06]} Red8 {[%emt 0:00:13]} 28. Qg3+ {[%emt 0:00:06]} Ng6 {[%emt 0:00:25]} 29. Be4 {[%emt 0:08:45]} h4 $2 {[%emt 0:05:22] Black is weak on the light squares} (29... Qh4 30. Qxh4 Nxh4) 30. Qf2 {[%emt 0:04:05]} Kh8 {[%emt 0:01:42]} 31. Kh1 {[%emt 0:02:10]} Rg8 {[%emt 0:04:12]} 32. Qb2 {[%emt 0:10:24]} Nxf4 $2 {[%emt 0:08:09]} (32... f6 {is a better chance.}) 33. e6+ {[%emt 0:00:09][%mdl 64] [#] Discovered Attack} f6 {[%emt 0:04:34]} 34. Nf7+ {[%emt 0:00:52]} Kg7 {[%emt 0:00:02]} 35. exd7 {[%emt 0:18:54]} Qxd7 {[%emt 0:04:58]} 36. Ng5 {[%emt 0:00:27] Strongly threatening Rad1.} Nxh3 {[%emt 0:01:45]} (36... Rbd8 $142 37. Bxh7 (37. Nxh7 $2 {too greedy.} Qxh3+ 38. Qh2 Qxh2+ 39. Kxh2 Rd2+ 40. Kh1 Nh5 $19) (37. Rf1 Qd4 $16) 37... Rge8) 37. Rad1 {[%emt 0:00:26]} Qg4 {[%emt 0:00:45]} 38. Nxh7 {[%emt 0:01:41][%csl Gh7][%cal Rb2f6]} Qf4 {[%emt 0:01:38] White must now prevent ...Nf2+.} 39. Qg2+ {[%emt 0:01:29]} Ng5 {[%emt 0:00:47]} 40. Nxg5 {[%emt 0:00:08]} fxg5 {[%emt 0:00:09]} 41. Rd7+ {[%emt 0:00:06] An entertaining game by Xie.   Weighted Error Value: White=0.46/Black=0.67} 1-0

[Event "Oceania Zonal Open 2023"]
[Site "Melbourne"]
[Date "2023.01.24"]
[Round "3.12"]
[White "Fu, Yihe"]
[Black "Melamed, Daniel"]
[Result "1-0"]
[ECO "B45"]
[WhiteElo "2149"]
[BlackElo "1898"]
[Annotator "TA"]
[PlyCount "143"]
[EventDate "2023.01.09"]
[EventType "swiss"]
[EventCountry "AUS"]
[SourceTitle "playchess.com"]
[Source "ChessBase"]
[SourceQuality "1"]
[TimeControl "5400+30"]

{[%evp 22,143,27,22,24,22,18,29,4,8,70,68,61,68,79,67,102,95,99,88,82,87,76,87,137,111,108,113,124,77,93,68,62,74,82,65,79,81,87,89,110,111,110,58,50,0,0,0,0,0,0,0,11,11,11,11,114,101,111,111,107,105,146,168,248,146,340,342,340,324,383,413,325,280,280,17,17,17,17,17,981,707,1290,1269,1104,1083,692,651,651,651,683,644,588,552,29949,29956,29966,29966,29969,29970,29968,29966,29980,29981,29981,29982,29982,29983,29983,29984,29981,29982,29985,29986,29986,29987,29987,29988,29988,29988,29988,29989,29989,29984]} 1. e4 {[%emt 0:00:01]} c5 {[%emt 0:00:07]} 2. Nf3 {[%emt 0:00:06]} e6 {[%emt 0:00:04]} 3. d4 {[%emt 0:00:11]} cxd4 {[%emt 0:00:04]} 4. Nxd4 {[%emt 0:00:09]} Nf6 {[%emt 0:00:05]} 5. Nc3 {[%emt 0:00:10]} Nc6 {[%emt 0:00:04]} 6. Nxc6 {[%emt 0:00:15]} bxc6 {[%emt 0:00:04]} 7. e5 {[%emt 0:00:08]} Nd5 {[%emt 0:00:03]} 8. Ne4 {[%emt 0:00:09]} Qc7 {[%emt 0:00:05]} 9. f4 {[%emt 0:00:07]} Qb6 {[%emt 0:00:04]} 10. c4 {[%emt 0:00:08]} Bb4+ {[%emt 0:00:04]} 11. Ke2 {[%emt 0:00:13]} f5 {[%emt 0:00:06]} 12. exf6 {[%emt 0:00:08]} Nxf6 {[%emt 0:00:05] B45: Sicilian Four Knights.} 13. Be3 {[%emt 0:00:21] Chess con chili.} Qd8 {[%emt 0:07:26]} 14. Nd6+ {[%emt 0:00:20]} Bxd6 {[%emt 0:01:01] White has an edge.} 15. Qxd6 {[%emt 0:00:20]} Qe7 {[%emt 0:00:14] Black is weak on the dark squares} (15... c5 $11) 16. Bc5 $14 {[%emt 0:00:09][%csl Gc5][%cal Rd6e7] White has more active pieces. The black rooks are badly placed.} Qxd6 {[%emt 0:00:25]} 17. Bxd6 {[%emt 0:00:27]} Ne4 {[%emt 0:01:57]} 18. Be5 {[%emt 0:00:08] [#]} d6 $146 {[%emt 0:20:33]} ({Predecessor:} 18... O-O 19. Ke3 d5 20. c5 a5 21. Bd3 Nf6 22. h3 Ba6 23. Bc2 Rf7 24. g4 Rb7 {1-0 Willder,M (1555)-Xu,E (1838) Glorney Cup Cardiff 2022 (4.3)}) 19. Bxg7 {[%emt 0:08:15]} Rg8 {[%emt 0:00:08]} 20. Ke3 $1 {[%emt 0:00:08]} Rxg7 {[%emt 0:03:17]} 21. Kxe4 {[%emt 0:00:20]} c5 {[%emt 0:00:10]} 22. Rg1 {[%emt 0:01:16]} h5 {[%emt 0:06:48]} (22... Rb7 $142) 23. Be2 {[%emt 0:01:29]} h4 {[%emt 0:03:29]} 24. g3 {[%emt 0:04:34]} hxg3 {[%emt 0:01:03]} 25. hxg3 {[%emt 0:02:08]} (25. Rxg3 $142 Bb7+ 26. Ke3) 25... Ke7 {[%emt 0:02:18]} 26. Bf3 {[%emt 0:02:48]} Rb8 {[%emt 0:01:42]} 27. b3 {[%emt 0:00:25]} a5 {[%emt 0:00:39][%cal Oa5a4]} 28. Kd3 {[%emt 0:04:45]} Bd7 {[%emt 0:03:06]} 29. Rae1 {[%emt 0:07:34]} Rh8 {[%emt 0:13:02]} 30. Ke3 {[%emt 0:01:32]} a4 {[%emt 0:02:31]} 31. g4 {[%emt 0:05:04]} Rh3 {[%emt 0:11:24]} 32. Rh1 {[%emt 0:01:33]} (32. Kf2 $16) 32... Rgh7 {[%emt 0:00:10][%cal Oh3f3]} 33. Rxh3 {[%emt 0:00:10]} (33. Ke2 $14) 33... Rxh3 {[%emt 0:00:02][%mdl 4096] Endgame KRB-KRB} 34. Kf2 {[%emt 0:03:00] aiming for Kg2.} Rh2+ {[%emt 0:03:49]} 35. Bg2 {[%emt 0:00:08]} Bc6 {[%emt 0:00:26]} 36. Rg1 {[%emt 0:00:09]} axb3 {[%emt 0:00:05]} 37. axb3 {[%emt 0:00:07] Hoping for Kg3.} Bxg2 $1 {[%emt 0:00:41]} 38. Rxg2 $11 {[%emt 0:00:12] KR-KR} Rh3 {[%emt 0:00:13]} (38... Rh1 $1 $11 {keeps the balance.}) 39. Rg3 $16 {[%emt 0:00:19]} Rh2+ {[%emt 0:00:15]} 40. Ke3 {[%emt 0:00:19]} Kf6 {[%emt 0:01:53] [#]} 41. Ke4 $1 {[%emt 0:01:18] And now Rd3 would win.} Re2+ {[%emt 0:05:14]} 42. Re3 {[%emt 0:01:52]} Rh2 {[%emt 0:00:41] [#]} (42... Rg2 $142) 43. g5+ {[%emt 0:00:33]} (43. Rd3 $1 $18 {[%cal Rd3d6]}) 43... Kg6 $2 {[%emt 0:00:16]} (43... Kf7 $16 44. Rd3 Ke7) 44. Rd3 $18 {[%emt 0:00:13]} Re2+ {[%emt 0:01:47]} 45. Kf3 {[%emt 0:00:11]} Rb2 {[%emt 0:00:11]} 46. Rxd6 {[%emt 0:00:10]} Kf5 {[%emt 0:00:17]} 47. Rd3 {[%emt 0:00:19] Re3 is the strong threat.} Rb1 {[%emt 0:00:30]} 48. Re3 $2 {[%emt 0:11:36]} (48. Kf2 $18) 48... Rf1+ $11 {[%emt 0:02:34]} 49. Kg3 {[%emt 0:00:14]} Rxf4 {[%emt 0:05:51]} 50. Rxe6 {[%emt 0:00:22][%mdl 64] Deflection} Rg4+ $2 {[%emt 0:00:05][%mdl 8192] Black is now going downhill.} (50... Kxg5 $11 51. Re5+ Rf5 52. Rxf5+ Kxf5) 51. Kf3 $18 {[%emt 0:00:16][%cal Oe6e5] Threatening mate with Re5+!} Rf4+ {[%emt 0:00:08]} 52. Ke3 {[%emt 0:00:15] White wants to mate with Rf6+.} Rh4 {[%emt 0:00:05]} 53. Rc6 {[%emt 0:00:37]} Rh3+ {[%emt 0:00:17]} 54. Kd2 {[%emt 0:00:06]} Rxb3 {[%emt 0:00:15]} 55. Rxc5+ {[%emt 0:00:06]} Ke4 {[%emt 0:00:36]} 56. g6 {[%emt 0:00:43][%cal Bg5g6,Bg6g7][%mdl 32] Strongly threatening Rc7.} Rg3 {[%emt 0:00:11]} 57. Rc6 {[%emt 0:00:08] Threatens to win with Rd6.} Ra3 {[%emt 0:08:29]} 58. g7 {[%emt 0:00:39] White mates.} Rg3 {[%emt 0:00:03]} 59. Rc7 {[%emt 0:00:10]} Ke5 {[%emt 0:00:09]} 60. c5 {[%emt 0:01:09][%cal Bc4c5,Bc5c6][%mdl 32]} Ke6 {[%emt 0:00:59]} 61. Ke2 {[%emt 0:00:16]} Kf6 {[%emt 0:00:14]} 62. c6 {[%emt 0:00:29]} Ke6 {[%emt 0:00:22]} 63. Rd7 {[%emt 0:00:06]} Rg2+ {[%emt 0:01:17]} 64. Kd3 {[%emt 0:00:08]} Rg4 {[%emt 0:00:09]} 65. Ke3 {[%emt 0:01:25]} Rg1 {[%emt 0:00:29]} 66. Kd4 {[%emt 0:00:14]} Rg5 {[%emt 0:00:55]} 67. Kc4 {[%emt 0:00:15]} Rg1 {[%emt 0:00:09]} 68. Kc5 {[%emt 0:00:13]} Rc1+ {[%emt 0:00:17]} 69. Kb6 {[%emt 0:00:14]} Rb1+ {[%emt 0:00:11]} 70. Ka7 {[%emt 0:00:15]} Ra1+ {[%emt 0:00:14]} 71. Kb8 {[%emt 0:00:07]} Rg1 {[%emt 0:00:46]} 72. Rd8 {[%emt 0:00:42] Weighted Error Value: White=0.21 (precise) /Black=0.23 (precise)} 1-0

[Event "Oceania Zonal Open 2023"]
[Site "Melbourne"]
[Date "2023.01.24"]
[Round "3.12"]
[White "Ruan, Harry"]
[Black "Kargosha, Bahman"]
[Result "1/2-1/2"]
[ECO "C54"]
[WhiteElo "1858"]
[BlackElo "2096"]
[Annotator "TA"]
[PlyCount "68"]
[EventDate "2023.01.09"]
[EventType "swiss"]
[EventCountry "AUS"]
[SourceTitle "playchess.com"]
[Source "ChessBase"]
[SourceQuality "1"]
[TimeControl "5400+30"]

{[%evp 9,68,12,24,16,25,22,32,21,25,23,17,5,14,21,26,0,8,0,35,25,26,-37,-56,-45,-42,-88,-72,-72,4,0,0,-28,-33,-81,-30,-87,-32,-49,-31,-54,-64,-103,-107,-103,-85,-201,-127,-113,-64,-85,-77,-82,-70,-75,-85,-81,0,0,0,-127,-59]} 1. e4 {[%emt 0:00:07]} e5 {[%emt 0:00:05]} 2. Nf3 {[%emt 0:00:04]} Nc6 {[%emt 0:00:05]} 3. Bc4 {[%emt 0:00:03]} Nf6 {[%emt 0:00:51]} 4. d3 {[%emt 0:00:06]} Bc5 {[%emt 0:00:12]} 5. c3 {[%emt 0:00:09]} a6 {[%emt 0:00:15]} ({But not} 5... d5 6. exd5 Nxd5 7. Qb3 $14) 6. a4 {[%emt 0:01:13] C54: Giuoco Piano: 4 c3 Nf6, main lines with 5 d4 and 5 d3.} Ba7 {[%emt 0:00:27]} 7. O-O {[%emt 0:01:09]} h6 {[%emt 0:00:28]} 8. Re1 {[%emt 0:03:01] White is slightly better.} d6 {[%emt 0:00:42]} 9. Nbd2 {[%emt 0:04:40][%cal Bb1d2,Bd2f1,Bf1g3][%mdl 32]} O-O {[%emt 0:00:53]} 10. h3 {[%emt 0:00:27]} Ne7 {[%emt 0:04:21]} 11. Nf1 {[%emt 0:03:08] 11.d4 is a critical line.} Ng6 {[%emt 0:00:23]} 12. Ng3 {[%emt 0:00:33]} c6 {[%emt 0:02:16]} 13. Ba2 {[%emt 0:04:18]} Re8 {[%emt 0:08:10]} 14. d4 $1 {[%emt 0:06:49]} Be6 {[%emt 0:03:48] [#]} 15. d5 $146 {[%emt 0:10:18]} (15. Bxe6 $11 Rxe6 16. Be3) ({Predecessor:} 15. Bxe6 Rxe6 16. Be3 exd4 17. Nxd4 Re8 18. Ndf5 Bxe3 19. Rxe3 Re6 20. Qd4 Qf8 21. Qb6 {0-1 Yudin,S (2599)-Kovalev,V (2556) Wch Blitz Almaty 2022 (11)}) 15... cxd5 $15 {[%emt 0:08:57]} 16. exd5 {[%emt 0:00:56]} Bd7 {[%emt 0:00:48]} 17. Be3 {[%emt 0:01:01]} (17. Nd2 $15) 17... Bxe3 $17 {[%emt 0:01:23]} 18. fxe3 {[%emt 0:05:53]} Qa5 {[%emt 0:09:13]} (18... e4 $17 19. Nd2 Re5) 19. Nd2 $11 {[%emt 0:16:01]} b5 {[%emt 0:10:16]} (19... Bxa4 $2 20. Bb1 $16) ({Don't play} 19... Qxa4 20. Nc4 Qxd1 21. Rexd1 $14) 20. axb5 {[%emt 0:06:13]} axb5 {[%emt 0:00:39]} 21. Qf3 {[%emt 0:01:18]} (21. Bb3 $15 Qb6 22. Qf3) 21... Qb6 {[%emt 0:02:30]} (21... b4 $17) 22. Kh1 {[%emt 0:05:48] [#]} (22. Rf1 $11) 22... Rf8 {[%emt 0:13:37]} ({Black should try} 22... e4 $1 $17 {[%cal Re4f3]} 23. Qe2 Re5) 23. Rf1 {[%emt 0:01:56]} Ne7 {[%emt 0:01:55]} 24. e4 {[%emt 0:01:09]} Ng6 {[%emt 0:05:09]} 25. Nf5 {[%emt 0:03:29]} Bxf5 {[%emt 0:00:49]} (25... Nf4 {with more complications.} 26. Bb3 Bxf5 27. exf5 b4) 26. exf5 {[%emt 0:00:10]} Ne7 {[%emt 0:01:59] A dynamic duo of knights.} (26... Nf4 {looks sharper.} 27. Kh2 b4 28. Bb3 Qc5) 27. g4 {[%emt 0:03:24]} (27. Kh2 $17 {might work better.}) 27... Ra4 {[%emt 0:00:37]} 28. Bb3 {[%emt 0:03:08]} Rf4 {[%emt 0:00:32]} (28... Rxa1 $17 29. Rxa1 b4) 29. Qg2 {[%emt 0:00:06]} Qe3 {[%emt 0:08:23]} 30. Rxf4 {[%emt 0:04:33]} Qxf4 {[%emt 0:07:44]} 31. Rf1 {[%emt 0:00:42]} Qe3 {[%emt 0:00:16][%cal Ob5b4]} 32. Rf3 {[%emt 0:00:06]} Qe1+ {[%emt 0:01:04]} (32... Qg5 $17 {[%cal Oh6h5] Strongly threatening ...h5!} 33. Rf1 h5) 33. Rf1 {[%emt 0:00:04]} Qe3 {[%emt 0:00:14][%cal Ob5b4]} 34. Rd1 {[%emt 0:06:45]} (34. Rf3 $1 $11 {was the only way to keep the balance.} Qg5 35. Rf1) 34... Rc8 {[%emt 0:01:21] Weighted Error Value: White=0.26 (precise) /Black=0.22 (precise)} (34... b4 $17 35. c4 Ra8) 1/2-1/2

[Event "Oceania Zonal Open 2023"]
[Site "Melbourne"]
[Date "2023.01.25"]
[Round "4.1"]
[White "Litchfield, Frederick"]
[Black "Kuybokarov, Temur"]
[Result "0-1"]
[ECO "D25"]
[WhiteElo "2119"]
[BlackElo "2558"]
[Annotator "TA"]
[PlyCount "98"]
[EventDate "2023.01.09"]
[EventType "swiss"]
[EventCountry "AUS"]
[SourceTitle "playchess.com"]
[Source "ChessBase"]
[SourceQuality "1"]
[TimeControl "5400+30"]

{[%evp 11,98,25,33,33,44,41,26,13,13,7,7,9,21,17,41,32,35,42,51,27,32,22,45,22,10,5,33,40,42,26,75,19,52,28,56,59,55,37,85,0,0,-68,28,25,17,22,47,-13,-19,-21,0,-45,-45,-43,-32,-62,0,0,9,-241,-222,-267,-109,-105,-20,-23,-35,-354,-352,-1597,-1662,-29975,-29980,-29980,-29977,-29974,-29982,-29982,-29981,-29983,-29982,-29989,-29990,-29993,-29989,-29986,-29987,32767,-29999]} 1. Nf3 {[%emt 0:00:03]} d5 {[%emt 0:02:27]} 2. d4 {[%emt 0:00:17]} Nf6 {[%emt 0:01:53]} 3. c4 {[%emt 0:00:24]} dxc4 {[%emt 0:03:39]} 4. e3 {[%emt 0:00:21]} Bg4 {[%emt 0:03:14]} 5. Bxc4 {[%emt 0:00:26]} e6 {[%emt 0:00:19]} 6. O-O {[%emt 0:00:18]} Bd6 {[%emt 0:05:22]} 7. Nc3 {[%emt 0:01:47] D25: Queen's Gambit Accepted: 4 e3: sidelines and 4...Bg4.} Nc6 {[%emt 0:01:09]} 8. h3 {[%emt 0:03:01]} Bh5 {[%emt 0:00:53]} 9. b3 {[%emt 0:05:28] White has an edge.} O-O {[%emt 0:07:27]} 10. Bb2 {[%emt 0:00:24]} Qe7 {[%emt 0:06:23] [#]} 11. Nb5 $146 {[%emt 0:04:59]} ({Predecessor:} 11. Be2 Rad8 12. Rc1 a6 13. Na4 e5 14. dxe5 Nxe5 15. Nxe5 Bxe5 16. Qe1 Bxb2 17. Nxb2 c6 {½-½ Cofman,V (2271)-Hoffmann,H (2115) GER-ch Net blitz qual1 2021 (11)}) 11... Bb4 {[%emt 0:01:07]} 12. a3 {[%emt 0:01:42]} Ba5 {[%emt 0:00:24]} 13. Be2 {[%emt 0:03:30]} Rad8 {[%emt 0:06:19]} 14. b4 {[%emt 0:02:37]} Bb6 {[%emt 0:00:43]} 15. Qc2 {[%emt 0:03:55]} a5 {[%emt 0:04:02]} 16. bxa5 {[%emt 0:05:38]} Bxa5 {[%emt 0:00:38]} 17. Rfd1 {[%emt 0:14:59]} Ra8 {[%emt 0:06:50]} 18. Nc3 {[%emt 0:03:33]} Bg6 {[%emt 0:07:22]} 19. Qb3 {[%emt 0:01:48]} Ne4 {[%emt 0:03:18]} 20. Nd2 {[%emt 0:03:47]} (20. Qxb7 Bxc3 21. Bxc3 Nxc3 $17) 20... Nd6 {[%emt 0:08:12]} (20... Nxd2 $11 21. Rxd2 e5) 21. Nc4 {[%emt 0:03:35]} (21. Rac1 $16) 21... Bxc3 {[%emt 0:02:43]} 22. Bxc3 {[%emt 0:01:28]} Be4 {[%emt 0:00:14]} 23. Nxd6 {[%emt 0:02:22]} cxd6 {[%emt 0:01:36]} 24. f3 {[%emt 0:01:14]} Bg6 {[%emt 0:01:05]} (24... Bd5 $14 25. Qb6 f5) 25. d5 {[%emt 0:03:32]} (25. a4 $16) 25... exd5 $11 {[%emt 0:01:06]} 26. Bd4 {[%emt 0:03:04]} ({Better is} 26. Bb2 $11) 26... Rfe8 {[%emt 0:02:41]} (26... Nxd4 $15 27. Rxd4 Bc2 28. Qxd5 Qxe3+ 29. Kf1 h6) 27. Bb6 {[%emt 0:07:44] A strong pair of Bishops.} d4 {[%emt 0:01:10]} 28. e4 {[%emt 0:06:33]} Kh8 {[%emt 0:06:14]} 29. Bxd4 {[%emt 0:03:05]} (29. Bb5 $14) 29... f5 {[%emt 0:00:15]} 30. Bb2 {[%emt 0:03:37][%cal Oe4f5]} fxe4 {[%emt 0:00:30]} 31. Qd5 {[%emt 0:00:53]} Rad8 {[%emt 0:00:50]} (31... Qh4 {is interesting.} 32. Rf1 e3 33. Rac1 Qg3) 32. Re1 {[%emt 0:01:03]} Qh4 {[%emt 0:02:06]} 33. Bc3 {[%emt 0:03:01]} Ne7 {[%emt 0:08:28]} (33... Re7 $15) 34. Qxb7 {[%emt 0:00:50]} d5 {[%emt 0:00:05][%cal Bd6d5,Bd5d4][%mdl 32] Hoping for ...d4.} 35. Rad1 {[%emt 0:01:18] [#]} (35. Qb2 $11 Rg8 36. Rad1) 35... d4 $1 $19 {[%emt 0:00:39][%mdl 512]} 36. Bb4 {[%emt 0:02:11] [#]} (36. Ba1 e3) 36... Nf5 {[%emt 0:01:28]} (36... e3 37. Bb5 Rb8 38. Qa6 $17) (36... Nd5 $1 $19 {[%cal Rd5f4] and Black stays clearly on top.} 37. Ba5 Ne3 38. Bxd8 Rxd8) 37. Bb5 $17 {[%emt 0:03:27][%csl LRe4,LRe8]} Rb8 {[%emt 0:02:04]} ({Black should try} 37... Qg3 $17 38. Rxe4 (38. Bxe8 $2 Nh4 $19) 38... Rb8 39. Rxe8+ {[%mdl 64] Remove Defender} Bxe8) 38. Qd5 $11 {[%emt 0:00:17]} Red8 $36 {[%emt 0:00:37][%mdl 2048] White is under pressure.} 39. Qe5 {[%emt 0:00:01][%mdl 8192]} (39. Qxe4 $15 Rxb5 40. Qxh4 Nxh4 41. Be7 Nxf3+ 42. gxf3) 39... exf3 $19 {[%emt 0:01:01]} 40. gxf3 {[%emt 0:00:57] [#]} (40. Rf1 fxg2 41. Rf3) 40... Rxb5 $1 {[%emt 0:01:12][%mdl 576] Deflection} 41. Qxb5 {[%emt 0:00:03]} (41. Qh2 Ne3) 41... Qg3+ {[%emt 0:00:08]} (41... Qxh3 42. Qf1 Qh4 43. Qf2 $15) 42. Kh1 {[%emt 0:00:39]} Qxh3+ {[%emt 0:00:11]} 43. Kg1 {[%emt 0:00:06]} Qg3+ {[%emt 0:00:48]} ({And not} 43... Qxf3 44. Qf1 Qg4+ 45. Qg2 $17) 44. Kf1 {[%emt 0:00:55]} Qxf3+ {[%emt 0:00:40]} 45. Kg1 {[%emt 0:00:01]} Qg3+ {[%emt 0:00:06]} 46. Kh1 {[%emt 0:01:11]} Nh4 {[%emt 0:01:27][%csl Gh4][%cal Rg3g2]} 47. Qf1 {[%emt 0:00:26] White is weak on the light squares} Bh5 {[%emt 0:00:43]} 48. Rd3 {[%emt 0:00:32]} Nf3 {[%emt 0:00:27][%csl Gf3][%cal Rg3h2]} 49. Qe2 {[%emt 0:01:12]} Qh3+ {[%emt 0:00:07] Artfully played by Kuybokarov.   Weighted Error Value: White=0.42/Black=0.15 (very precise)} 0-1